Cogmind - Beta 16 @@@ ROGUE MODE // 2025.11.10 @ 14:18:26 Player: Buyo Result: Destroyed by G-34 Mercenary with Small Laser Performance ------------- Evolutions (1) 500 Regions Visited (2) 400 Robots Destroyed (5) 25 Value Destroyed (70) 70 Prototype IDs (0) 0 Alien Tech Used (0) 0 Bonus (0) 0 TOTAL SCORE: 995 Bonus ------- None Cogmind --------- Core Integrity 0/400 Matter 225/300 Energy 26/100 System Corruption 0% Temperature Cool (6) Movement Core (150) Ox2 Location -9/Materials Parts ------- > --- POWER (1) -------- (None) > --- PROPULSION (3) --- (None) > --- UTILITY (3) ------ Small Storage Unit ECM Suite > --- WEAPON (2) ------- (None) > --- INVENTORY (8) ---- EM Pulse Gun Small Laser Peak State ------------ > --- POWER ------------ Light Ion Engine > --- PROPULSION ------- Compact Wheel Compact Wheel > --- UTILITY ---------- Small Storage Unit ECM Suite Light Armor Plating > --- WEAPON ----------- EM Pulse Gun Light EM Pulse Cannon > --- INVENTORY -------- Ion Engine EM Pulse Gun EM Pulse Gun Small Laser Grenade Launcher [Rating: 9] Favorites ----------- Power Light Ion Engine Engine Light Ion Engine Propulsion Compact Wheel Wheel Compact Wheel Utility Small Storage Unit Device ECM Suite Storage Small Storage Unit Protection Light Armor Plating Weapon EM Pulse Gun Energy Gun EM Pulse Gun Energy Cannon Light EM Pulse Cannon Launcher Grenade Launcher Build | -11 -10 -9 ------- Run | Yrd Mat Mat Slots Evolved 2 | . . 2 Power . | . . . Propulsion 1 | . . 1 Utility 1 | . . 1 Weapon . | . . . Parts Attached 12 | 6 2 4 Power 2 | 1 . 1 Engine 2 | 1 . 1 Core . | . . . Reactor . | . . . Propulsion 2 | 2 . . Treads . | . . . Leg . | . . . Wheel 2 | 2 . . Hover . | . . . Flight . | . . . Utility 3 | 1 1 1 Device 1 | . . 1 Storage 1 | 1 . . Processor . | . . . Hackware . | . . . Protection 1 | . 1 . Artifact . | . . . Weapon 5 | 2 1 2 Energy Gun 3 | 2 1 . Energy Cannon 1 | . . 1 Ballistic Gun . | . . . Ballistic Cannon . | . . . Launcher 1 | . . 1 Special Weapon . | . . . Impact Weapon . | . . . Slashing Weapon . | . . . Piercing Weapon . | . . . Special Melee Weapon . | . . . Unidentified Prototypes . | . . . Parts Lost 9 | . . 9 Power 2 | . . 2 Propulsion 2 | . . 2 Utility 1 | . . 1 Weapon 4 | . . 4 Highest Loss Streak 9 | . . 9 To Critical Strikes . | . . . Average Backups 3 | 1 3 3 Power . | . 1 . Propulsion . | . . . Utility . | . . . Weapon 2 | . 1 3 Tool/Special . | . . . Unused Backups 1 | . . 1 Power . | . . . Propulsion . | . . . Utility . | . . . Weapon 1 | . . 1 Tool/Special . | . . . Average Slot Usage (%) 86 | . 98 64 Engine 12 | . 14 8 Wheel 22 | . 28 13 Device 3 | . . 11 Storage 12 | . 14 11 Protection 11 | . 12 7 Energy Gun 20 | . 28 7 Energy Cannon 1 | . . 4 Peak Build Rating 9 | 6 7 9 Average Rating 6 | 4 6 6 On Entrance 4 | . 6 7 Avg Prop Armor Cover (%) . | . . . Naked Turns . | . . . Heaviest Build 21 | 12 15 21 Greatest Support 32 | 32 32 32 Greatest Overweight (x) 2 | 1 . 2 Average Overweight (x) . | . . . Largest Inventory Capacity 8 | 8 8 8 Average Capacity 7 | 7 8 8 Most Carried 5 | 3 5 5 Average Carried 3 | 1 3 3 Final Capacity 8 | 8 8 8 Final Carried 5 | 2 5 2 Class Distribution -------------------- 100% | Mutant Dominant Class ---------------- Mutant | -10/Materials Mutant | -9/Materials Resources | -11 -10 -9 ----------- Run | Yrd Mat Mat Matter Collected 250 | 231 19 . Remotely . | . . . Salvage Created 78 | . 51 27 Parts 5 | . 3 2 Haulers Intercepted . | . . . Recyclers Shooed . | . . . Parts Field Recycled . | . . . Retrieved Matter . | . . . Parts Self-Destructed . | . . . Prevented . | . . . Parts Restored . | . . . Kills | -11 -10 -9 ------- Run | Yrd Mat Mat Combat Hostiles Destroyed 5 | . 3 2 Guns 2 | . 2 . Cannons 1 | . . 1 AOE 2 | . 1 1 Classes Destroyed 1 | . 1 . Swarmer 5 | . 3 2 Best Kill Streak 3 | . 3 1 Combat Bots Only 3 | . 3 1 Max Kills in Single Turn 1 | . 1 1 Gunslinging . | . . . Exploded 1 | . 1 1 Melee . | . . . Uniques/NPCs Destroyed . | . . . Combat | -11 -10 -9 -------- Run | Yrd Mat Mat Hostile Shots Fired 163 | . 10 153 Missed 53 | . 3 50 Hits 110 | . 7 103 Projectile 110 | . 7 103 Damage Taken 1051 | . 98 953 Core 432 | . 30 402 Absorbed by Shields . | . . . Core Remaining (%) 94 | 100 88 . Volleys Fired 10 | . 3 7 Largest 2 | . 2 2 Hottest 80 | . 80 70 Shots Fired 14 | . 6 8 Gun 9 | . 6 3 Cannon 4 | . . 4 Launcher 1 | . . 1 Special . | . . . Kinetic . | . . . Thermal . | . . . Explosive 1 | . . 1 Electromagnetic 13 | . 6 7 Robot Hit Streak 4 | . 4 4 Robot Miss Streak 1 | . . 1 Penetration Max . | . . . Secondary Targets . | . . . Shots Hit Robots 8 | . 4 4 Core Hits 6 | . 3 3 Critical Kills . | . . . Critical Parts Destroyed . | . . . Critical Strikes . | . . . Melee Attacks . | . . . Impact . | . . . Slashing . | . . . Piercing . | . . . Sneak Attacks . | . . . Combat Hostiles . | . . . Follow-up Attacks . | . . . Damage Inflicted 343 | . 115 228 Guns 57 | . 47 10 Cannons 58 | . . 58 Explosions 228 | . 68 160 Melee . | . . . Ramming . | . . . Kinetic . | . . . Thermal 68 | . 68 . Explosive 160 | . . 160 Electromagnetic 115 | . 47 68 Impact . | . . . Slashing . | . . . Piercing . | . . . Highest Corruption . | . . . Average Corruption . | . . . Corruption Purged . | . . . Corruption Blocked . | . . . Overload Shots . | . . . Overflow Damage 40 | . . 40 Projectiles . | . . . Explosions 40 | . . 40 Melee . | . . . Knockbacks . | . . . Impact . | . . . Kinetic . | . . . Secondary . | . . . Self-Inflicted Damage 79 | . 34 45 Shots 2 | . 1 1 Rammed . | . . . Targets Rammed . | . . . Kicked . | . . . Crushed . | . . . Highest Temperature 93 | . 93 64 Average Temperature 40 | . 46 32 Received Heat Transfer 159 | . 18 141 Siege Activations . | . . . Martial Activations . | . . . Shielding Activations . | . . . Robots Disrupted . | . . . Combat Hostiles . | . . . Robots Corrupted . | . . . Combat Hostiles . | . . . Parts Fried . | . . . Impact Corruptions . | . . . Robots Melted . | . . . Combat Hostiles . | . . . Parts Melted . | . . . Heat Transferred 100 | . 100 . Parts Sabotaged . | . . . Parts Stolen . | . . . Parts Stripped . | . . . Power Chain Reactions 1 | . 1 . Alert | -11 -10 -9 ------- Run | Yrd Mat Mat Maximum Alert Level . | . . . Low Security (%) 100 | 100 100 100 Level 1 . | . . . Level 2 . | . . . Level 3 . | . . . Level 4 . | . . . Level 5 . | . . . High Security . | . . . Max Security . | . . . Peak Influence 78 | . 78 56 Initial 11 | . . 11 Average 17 | . 25 11 Influence Increases 164 | . 88 76 Destroy 0b10 Robot/C 100 | . 60 40 Destroy Leader 10 | . 10 . Disable Machine 30 | . . 30 Destroy Structure 9 | . 3 6 Lose Combat Pursuer 15 | . 15 . Influence Decreases 138 | . 60 78 Entered New Map 17 | . . 17 Time Decay 91 | . 60 31 Lost Part 30 | . . 30 Squads Dispatched 2 | . 1 1 Investigation 1 | . . 1 Extermination . | . . . Reinforcement 1 | . 1 . Assault . | . . . Garrison . | . . . Intercept . | . . . Searches Triggered . | . . . Construction Impeded . | . . . Haulers Reinforced . | . . . Active Scanning Responses . | . . . Cargo Convoy Interrupts . | . . . Stealth | -11 -10 -9 --------- Run | Yrd Mat Mat Distress Signals . | . . . Communications Jammed . | . . . Distress Signals . | . . . Times Spotted 28 | . 5 23 Peak Tracking Total 12 | . 3 12 Tactical Retreats 4 | . 1 3 ECM-based Alert Blocks 7 | . . 7 Traps | -11 -10 -9 ------- Run | Yrd Mat Mat Traps Triggered 2 | . 1 1 Indirectly . | . . . Trap Hack Attempts . | . . . Triggered . | . . . Disarmed . | . . . Reprogrammed . | . . . Reused . | . . . Traps Extracted . | . . . Installed . | . . . Triggered . | . . . Machines | -11 -10 -9 ---------- Run | Yrd Mat Mat Machines Disabled 2 | . . 2 Max in Single Turn 2 | . . 2 Machines Repaired . | . . . Machines Dismantled . | . . . Machines Sabotaged . | . . . Overloaded Fab Kills . | . . . Hacking | -11 -10 -9 --------- Run | Yrd Mat Mat Machines Accessed 3 | . 3 . Terminals 2 | . 2 . Fabricators . | . . . Repair Stations . | . . . Recycling Units 1 | . 1 . Scanalyzers . | . . . Garrison Access . | . . . Total Hacks 8 | . 8 . Successful 4 | . 4 . Failed 4 | . 4 . Catastrophic . | . . . Database Lockouts . | . . . Manual . | . . . Terminals 5 | . 5 . Fabricators . | . . . Repair Stations . | . . . Recycling Units 3 | . 3 . Scanalyzers . | . . . Garrison Access . | . . . Terminal Hacks 3 | . 3 . Emergency Access Points 1 | . 1 . Investigation Status 1 | . 1 . Hauler Manifests 1 | . 1 . Fabricator Hacks . | . . . Repair Station Hacks . | . . . Recycling Unit Hacks 1 | . 1 . Report Inventory 1 | . 1 . Scanalyzer . | . . . Garrison Access Hacks . | . . . Unauthorized Hacks . | . . . Terminals . | . . . Fabricators . | . . . Repair Stations . | . . . Recycling Units . | . . . Scanalyzers . | . . . Garrison Access . | . . . Data Cores Recovered . | . . . Used . | . . . Hacking Detections 2 | . 2 . Full Trace Events . | . . . Feedback Events . | . . . Feedback Blocked . | . . . Robot Schematics Acquired . | . . . Robots Built . | . . . Authchips . | . . . Time . | . . . Total Robot Build Rating . | . . . Part Schematics Acquired . | . . . Parts Built . | . . . Authchips . | . . . Time . | . . . Total Part Build Rating . | . . . Part Studies Acquired . | . . . Parts Repaired . | . . . Time . | . . . Parts Recycled . | . . . Recycled Matter . | . . . Retrieved Matter . | . . . Retrieved Components . | . . . Parts Scanalyzed . | . . . Part Schematics Acquired . | . . . Parts Damaged . | . . . Bothacking | -11 -10 -9 ------------ Run | Yrd Mat Mat Used RIF Installer . | . . . Robots Hacked . | . . . Non-combat . | . . . Combat . | . . . Robot Hacks Applied . | . . . Relay Couplers Released . | . . . Fabnet Peak Effective % . | . . . Robots Rewired . | . . . Allies Hacked . | . . . Hacks Repelled . | . . . Allies | -11 -10 -9 -------- Run | Yrd Mat Mat Total Allies . | . . . Largest Group . | . . . Highest-Rated Group . | . . . Highest-Rated Ally . | . . . Total Orders . | . . . Ally Attacks . | . . . Total Damage . | . . . Kills . | . . . Allies Corrupted . | . . . Allies Melted . | . . . Intel | -11 -10 -9 ------- Run | Yrd Mat Mat Active Infowar (turns) 132 | . . 132 ECM 132 | . . 132 Robot Analysis Total . | . . . Derelict Logs Recovered . | . . . Drone Launches . | . . . Drone Recoveries . | . . . Exploration | -11 -10 -9 ------------- Run | Yrd Mat Mat Turns Passed 446 | 51 257 138 Spaces Moved 383 | 44 237 102 Core 32 | 11 . 21 Treads . | . . . Legs . | . . . Wheels 351 | 33 237 81 Hover . | . . . Flight . | . . . Fastest Speed 50 | 50 100 100 Average Speed 101 | 90 100 111 Slowest Speed 150 | 100 100 150 Overloaded Moves . | . . . Propulsion Burnouts . | . . . Robots Hopped . | . . . Potential Cave-ins . | . . . Cave-ins Triggered . | . . . Exploration Rate (%) 20 | 4 38 18 Regions Visited 2 Branch Regions . Pre-discovered Areas . | . . . Known Exits Taken . | . . . Unknown Exits Taken 2 | 1 1 . Scrap Searched . | . . . Spaces Dug 5 | . . 5 Terrain Destroyed 7 | . 2 5 Melee . | . . . Projectile . | . . . AOE 7 | . 2 5 Terrain Rammed . | . . . Walls Destroyed . | . . . Machines Disabled . | . . . Actions | -11 -10 -9 --------- Run | Yrd Mat Mat Total 420 | 53 249 118 Wait 5 | . 3 2 Move 381 | 43 236 102 Hop . | . . . Pick Up 8 | 4 3 1 Fast Attach 7 | 4 3 . Attach 6 | 2 . 4 Detach . | . . . Swap 3 | . 1 2 Drop . | . . . Fire 10 | . 3 7 Melee . | . . . Ram . | . . . Kick . | . . . Crush . | . . . Escape Stasis . | . . . Rewire . | . . . Trap . | . . . Miscellaneous . | . . . Route ------- -11/Scrapyard -10/Materials -9/Materials (discovered 1 exit: [*Min]) History --------- Turn | Location | Event 11 | -11/Scrapyard | Discovered new exit (range 15) 52 | -11/Scrapyard | Entered Materials 223 | -10/Materials | Discovered new exit (range 9) 309 | -10/Materials | Entered another Materials area 309 | -9/Materials | Evolved 2 slots: Propulsion x1, Utility x1 342 | -9/Materials | Build established: Mutant 366 | -9/Materials | Discovered new exit (range 10) 433 | -9/Materials | Core integrity fell below 50% 443 | -9/Materials | Core integrity fell below 20% 447 | -9/Materials | Lost 9 parts (2p2n1u4w) 447 | -9/Materials | Destroyed by G-34 Mercenary with Small Laser Last Messages --------------- 00386_ Lgt. EM Pulse Cannon destroyed. 00387_ K-01 Serf collects debris. 00390_ K-01 Serf cleans the Fusion Modulator. 00400_ Lgt. Armor Plating destroyed. 00409_ Com. Wheel destroyed. 00412_ Ion Engine destroyed. 00412_ Destroyed Ion Engine. 00412_ S-10 Pest destroyed. 00412_ Destroyed Flight Unit. 00412_ Atomic Centrifuge disabled. 00413_ Grenade Launcher destroyed. 00416_ EM Pulse Gun destroyed. 00418_ S-10 Pest destroyed. 00432_ Triggered Alarm Trap. 00432_ An alarm sounds. 00432_ ALERT: Alarm triggered, dispatching investigation squad. 00433_ U-05 Engineer lays Concrete. 00439_ U-05 Engineer builds a Door. 00440_ U-05 Engineer builds a Wall. 00442_ S-10 Pest misfires. Map ----- +----------------------------------------------------+ | """ #????????????????????????????????????????????? | | "" #????????????????????????????????????????????? | | #???????????????? ???????????????????????????? | | #?###+########### ???????????????????????????? | | ####### ????????????????????????????? | | ????????????????????????????? | | ########??????????????????????? | | """ """ = # ###########????????????? | | """ """ =%[# """ # = #????????????? | | """ """ # """ # #????????????? | | " ""# """ # #????????????? | | "%" Y"# # """ """ #????????????? | | " ""#=%""" # """ """ #????????????? | | / [""" # "" " #????????????? | | # """ # #????????????? | | ############## # # % #????????????? | | #?????????## ## """ #### /## ##????????????? | | "" #??????????# ## """ #?# % ########????????? | | "" #??????????# ## """ #### + = #????????? | | "" #??????????# ## / # #????????? | | "" #??????????# ############ # #????????? | | "" #??????????# #??????????# # #????????? | | #?????????## #??????????# # """#????????? | | #?????????# ########### # """#????????? | | ####?????????# g s # """#????????? | | ?????????????# < g @ s Y """#????????? | | ?????????????# gg bs# """#????????? | | ?????????????# ########## # #????????? | | ?????????????#######????????# ########????????? | | ????????????????????????????# ???? | | ????????????????????????????# ???? | | ??????????????????????????? ???? | | ??????????????????????????####+###############???? | | ?????????????????????????????????????????????????? | | ?????????????????????????????????????????????????? | | ?????????????????????????????????????????????????? | | ?????????????????????????????????????????????????? | | ?????????????????????????????????????????????????? | | ?????????????????????????????????????????????????? | | ?????????????????????????????????????????????????? | | ?????????????????????????????????????????????????? | | ?????????????????????????????????????????????????? | | ?????????????????????????????????????????????????? | | ?????????????????????????????????????????????????? | | ?????????????????????????????????????????????????? | | ?????????????????????????????????????????????????? | | ?????????????????????????????????????????????????? | | ?????????????????????????????????????????????????? | | ?????????????????????????????????????????????????? | | ?????????????????????????????????????????????????? | +----------------------------------------------------+ Best States ------------- Heat Dissipation 28 Energy Generation 10 Energy Capacity 250 Matter Stores 280 Matter Capacity 300 Sight Range 16 Terrain Scan Density 10 ECM Strength 1 Armor Coverage 150 Evasion (%) 40 Item Schematics ----------------- None Robot Schematics ------------------ None Fabricated ------------ Nothing Repaired ---------- Nothing Studied --------- None Alien Tech Used ----------------- None Achievements -------------- None Challenges ------------ None Game ------ Seed ProjectionFluxBoomstick Manual? 0 Play Time 00:11:44 Cumulative 31.2 hours Start 2025.11.10 @ 13:57:15 End 2025.11.10 @ 14:18:26 Sessions 1 Manual Loads 0 Difficulty Rogue Special Mode None Game No. 27 Rogue 27 Adventurer 0 Explorer 0 Win Type - Total 0 Types 0/0/0/0/0/0/0/0/0/0 Lore% 11 Gallery% 27 Achievement% 16 Wizard Run 0 Options --------- Layout 0 ASCII 0 Keyboard 0 Movement Numpad Keybinds 0 Fullscreen 2 Font 24/Smallcaps Map View 113x50 Zoom Use 0% Tactical HUD 1 Map Filters NONE Filters NONE Steam 1 RUN: 958b4938-652a-4d6f-ba36-3f1600167079